[Event "Polish Ekstraliga 2024"]
[Site "Walbrzych"]
[Date "2024.10.09"]
[Round "3.20"]
[White "Navara, David"]
[Black "Krasenkow, Michal"]
[Result "1/2-1/2"]
[ECO "B04"]
[WhiteElo "2683"]
[BlackElo "2490"]
[Annotator "TA"]
[PlyCount "231"]
[EventDate "2024.10.05"]
[EventType "team-tourn"]
[EventCountry "POL"]
[SourceTitle "playchess.com"]
[Source "ChessBase"]
[SourceQuality "1"]
[WhiteTeam "Katowice"]
[BlackTeam "Gorzow Wlkp"]
[TimeControl "40/5400+30:1800+30"]

{[%evp 11,231,22,53,33,72,62,66,68,85,85,89,79,87,98,112,112,90,90,90,86,89,108,100,81,102,87,188,195,168,108,116,130,179,144,188,137,151,73,57,77,67,64,62,56,59,44,49,53,66,50,65,58,71,54,56,37,114,90,108,64,73,61,59,56,60,73,50,44,52,49,29,25,21,26,30,23,40,37,56,8,8,8,68,60,68,68,68,69,69,69,69,68,68,68,68,68,68,60,68,8,61,61,61,61,61,61,61,61,61,61,61,61,61,61,61,61,61,61,61,61,61,58,58,58,58,58,73,65,66,58,73,73,73,58,73,58,73,58,73,73,73,58,58,58,58,58,58,58,58,58,58,58,58,58,58,58,58,58,58,58,58,58,58,58,58,58,58,58,58,58,58,58,58,66,66,8,8,8,8,8,8,0,0,0,0,0,0,0,0,0,0,0,0,0,8,0,0,0,0,0,0,0,0,0,0,0,8,8,8,0,8,0,0,0,0,0,0,0,0,0,0,0]} 1. e4 {[%emt 0:00:02]} Nf6 {[%emt 0:00:08]} 2. e5 {[%emt 0:00:07]} Nd5 {[%emt 0:00:05]} 3. d4 {[%emt 0:00:44]} d6 {[%emt 0:00:09]} 4. Nf3 {[%emt 0:00:12]} dxe5 {[%emt 0:00:06]} 5. Nxe5 {[%emt 0:00:07]} c6 {[%emt 0:00:04]} 6. Be2 {[%emt 0:01:10]} Nd7 {[%emt 0:01:03]} 7. Nf3 {[%emt 0:00:26]} N7f6 {[%emt 0:01:01]} 8. c4 {[%emt 0:04:06]} Nb6 {[%emt 0:00:31]} 9. a4 {[%emt 0:11:00][%cal Ba2a4,Ba4a5][%mdl 32] White is slightly better.} Bg4 {[%emt 0:05:50]} 10. a5 $1 {[%emt 0:01:33]} Nbd7 {[%emt 0:00:59]} 11. h3 {[%emt 0:10:16]} Bxf3 {[%emt 0:13:13]} 12. Bxf3 {[%emt 0:00:46]} ({Much worse is} 12. gxf3 $6 Qc7 $11) 12... a6 {[%emt 0:00:11]} 13. Bf4 {[%emt 0:01:13]} e6 {[%emt 0:02:32]} 14. O-O {[%emt 0:07:05]} Be7 {[%emt 0:02:32]} 15. Nc3 {[%emt 0:20:34]} O-O {[%emt 0:00:37]} 16. Bh2 {[%emt 0:03:17]} Ne8 {[%emt 0:04:42][%cal Bf6e8,Be8d6,Bd6c8][%mdl 32] [#]} 17. Qb3 $1 {[%emt 0:01:31] Black is weak on the light squares} Ra7 {[%emt 0:19:50]} 18. Ne4 {[%emt 0:00:46]} Ndf6 {[%emt 0:04:34] [#]} (18... Nef6 $16) 19. Qb6 $1 $18 {[%emt 0:01:30]} Qa8 {[%emt 0:01:20]} 20. Nc5 {[%emt 0:01:31]} (20. Nxf6+ $18 Nxf6 21. Bf4) 20... Nd6 $16 {[%emt 0:01:30]} 21. Rac1 {[%emt 0:05:50]} Rd8 {[%emt 0:03:47]} (21... Nf5 $16 {might work better.}) 22. Rfd1 $18 {[%emt 0:01:07]} Nc8 {[%emt 0:04:15]} 23. Qc7 {[%emt 0:06:58]} (23. Qb3 $18) 23... Ne8 $16 {[%emt 0:02:17]} 24. Qb8 {[%emt 0:05:47] White is much more active.} (24. Qe5 $142) 24... Qxb8 {[%emt 0:01:32]} 25. Bxb8 {[%emt 0:00:11]} Ra8 {[%emt 0:00:03] White must now prevent ...Bxc5.} 26. Bh2 {[%emt 0:06:34]} Bxc5 {[%emt 0:00:41]} 27. dxc5 {[%emt 0:00:06]} Ne7 {[%emt 0:00:07]} 28. g4 {[%emt 0:01:17]} f6 {[%emt 0:01:26]} 29. Be4 {[%emt 0:01:37]} g6 {[%emt 0:06:45]} 30. b4 {[%emt 0:04:31]} e5 {[%emt 0:08:47]} 31. g5 {[%emt 0:00:07]} fxg5 {[%emt 0:06:04]} 32. Bxe5 {[%emt 0:00:10]} Kf7 {[%emt 0:00:19]} 33. Bf3 {[%emt 0:03:25] This pair of bishops is nice.} Ke6 {[%emt 0:03:02]} (33... Ng7 $14) 34. Re1 {[%emt 0:00:30]} Kf7 {[%emt 0:00:01]} 35. Rcd1 {[%emt 0:00:19]} Nf5 {[%emt 0:00:08]} 36. Rxd8 {[%emt 0:01:24]} Rxd8 {[%emt 0:00:01] [#]} 37. b5 $1 {[%emt 0:00:07]} Nd4 {[%emt 0:01:58]} (37... Ne7 38. Rb1) 38. Bxd4 {[%emt 0:00:47]} Rxd4 {[%emt 0:00:02]} 39. bxc6 {[%emt 0:00:44]} bxc6 {[%emt 0:00:06]} 40. Bxc6 $14 {[%emt 0:00:00][%mdl 4096] Endgame. KRB-KRN} Nc7 {[%emt 0:00:00]} 41. Rb1 {[%emt 0:03:25]} Kf6 $1 {[%emt 0:04:12]} 42. Rb7 {[%emt 0:05:13]} Ne6 {[%emt 0:00:27]} 43. Bd5 {[%emt 0:00:33]} Nxc5 {[%emt 0:02:17]} 44. Rc7 {[%emt 0:03:08]} Nd3 {[%emt 0:05:55]} 45. Rxh7 {[%emt 0:07:51]} (45. Rc6+ $14 Kf5 46. Rxa6) 45... Nf4 $11 {[%emt 0:01:54]} 46. Ra7 {[%emt 0:00:20]} Nxh3+ {[%emt 0:02:28]} ({Better is} 46... Kf5 $1 $11) 47. Kh2 $14 {[%emt 0:00:21]} g4 {[%emt 0:03:10]} 48. Rxa6+ {[%emt 0:00:57]} Kg5 {[%emt 0:00:09]} 49. Re6 $1 {[%emt 0:04:13] Strongly threatening a6.} Rd2 $1 {[%emt 0:09:18][%cal Og5h4]} 50. Kg3 {[%emt 0:01:03]} Rxf2 {[%emt 0:00:15]} 51. Re5+ $1 {[%emt 0:07:38]} Kf6 $1 {[%emt 0:00:21]} 52. Re3 {[%emt 0:00:20]} Ra2 {[%emt 0:01:24] Prevents Ra3} 53. Kxg4 {[%emt 0:00:06] And now Re6+ would win.} Nf2+ $1 {[%emt 0:03:34]} 54. Kf3 {[%emt 0:02:19] Re2 is the strong threat.} Nd1 {[%emt 0:00:20]} 55. Rb3 {[%emt 0:00:33]} (55. Rd3 $1 $14 Nb2 56. Rd2 Ra3+ 57. Ke4 Nxc4 58. Rf2+ Kg7 59. Bxc4 Rxa5 60. Rf7+ Kh6 61. Bd5) 55... Rxa5 {[%emt 0:05:16]} ({Black should try} 55... Ke5 $1 $11) 56. Ke2 {[%emt 0:00:08]} Ra1 {[%emt 0:00:06]} 57. c5 {[%emt 0:00:12] aiming for c6.} Ra5 {[%emt 0:00:59]} 58. Kxd1 {[%emt 0:00:49]} Rxc5 {[%emt 0:00:02] KRB-KR} 59. Be4 {[%emt 0:00:07]} g5 {[%emt 0:00:14]} 60. Ke2 {[%emt 0:00:16]} g4 {[%emt 0:01:34]} 61. Kf2 {[%emt 0:00:24]} Kg5 {[%emt 0:00:10]} 62. Kg3 {[%emt 0:00:05]} Ra5 {[%emt 0:00:20]} 63. Bc6 {[%emt 0:00:33]} Rc5 {[%emt 0:00:37]} 64. Bd7 {[%emt 0:00:18]} Rc4 {[%emt 0:00:10]} 65. Ra3 {[%emt 0:01:20]} Rb4 {[%emt 0:00:17]} 66. Be6 {[%emt 0:00:10]} Rd4 {[%emt 0:00:37]} 67. Ra5+ {[%emt 0:00:11]} Kf6 {[%emt 0:00:00]} 68. Bxg4 {[%emt 0:00:09]} Rd3+ {[%emt 0:00:10]} 69. Kf4 {[%emt 0:00:05]} Rd4+ {[%emt 0:00:05]} 70. Kf3 {[%emt 0:00:04]} Rb4 {[%emt 0:00:36]} 71. Bf5 {[%emt 0:00:04]} Rc4 {[%emt 0:01:09]} 72. Be4 {[%emt 0:00:11]} Rc1 {[%emt 0:00:08]} 73. Kf4 {[%emt 0:00:06]} Rf1+ {[%emt 0:00:11]} 74. Bf3 {[%emt 0:00:28]} Re1 {[%emt 0:00:06]} 75. Rb5 {[%emt 0:00:30]} Ke7 {[%emt 0:00:38]} 76. Be4 {[%emt 0:00:17]} Kd6 {[%emt 0:00:11]} 77. Rb6+ {[%emt 0:00:56]} Kc5 {[%emt 0:00:15]} 78. Rc6+ {[%emt 0:00:05]} Kd4 {[%emt 0:00:15]} 79. Rd6+ {[%emt 0:00:05]} Kc5 {[%emt 0:00:06]} 80. Rd8 {[%emt 0:00:27]} Rg1 {[%emt 0:00:39]} 81. Ke5 {[%emt 0:00:05]} Rg5+ {[%emt 0:00:16]} 82. Bf5 {[%emt 0:00:05]} Rh5 {[%emt 0:00:18]} 83. Rc8+ {[%emt 0:00:15]} Kb5 {[%emt 0:00:08]} 84. Rc1 {[%emt 0:01:14]} Rg5 {[%emt 0:00:25]} 85. Ke4 {[%emt 0:01:06]} Kb6 {[%emt 0:00:11]} 86. Be6 {[%emt 0:00:18]} Rc5 {[%emt 0:00:06]} 87. Bc4 {[%emt 0:00:33]} Rh5 {[%emt 0:01:35]} 88. Kd4 {[%emt 0:02:12]} Rg5 {[%emt 0:00:35]} 89. Bd5 {[%emt 0:00:15]} Rg4+ {[%emt 0:00:05]} 90. Be4 {[%emt 0:00:15]} Kb5 {[%emt 0:00:14]} 91. Rh1 {[%emt 0:02:22]} Kb4 {[%emt 0:00:17]} 92. Rb1+ {[%emt 0:00:25]} Ka4 {[%emt 0:00:06]} 93. Kd5 {[%emt 0:01:16]} (93. Re1 $14 Kb5 94. Rb1+ Ka4 95. Rb8) 93... Ka3 {[%emt 0:00:10] The position is equal.} 94. Rb8 {[%emt 0:01:00]} Rh4 {[%emt 0:00:21]} 95. Bd3 {[%emt 0:00:14]} Rb4 {[%emt 0:00:13]} 96. Rc8 {[%emt 0:00:23]} Rh4 {[%emt 0:01:23]} 97. Be4 {[%emt 0:00:53]} Kb3 {[%emt 0:00:57]} 98. Rc7 {[%emt 0:00:35]} Rg4 {[%emt 0:00:30]} 99. Kd4 {[%emt 0:00:29]} Kb4 {[%emt 0:00:09]} 100. Rh7 {[%emt 0:00:36]} Kb5 {[%emt 0:00:25]} 101. Rb7+ {[%emt 0:00:06]} Ka4 {[%emt 0:00:05]} 102. Kd5 {[%emt 0:00:12]} Ka3 {[%emt 0:00:07]} 103. Rc7 {[%emt 0:00:17]} Kb3 {[%emt 0:00:18]} 104. Rc4 {[%emt 0:00:36] White threatens Bc2+ and mate.} Rg5+ {[%emt 0:00:18]} 105. Kd4 {[%emt 0:00:05]} Rg4 {[%emt 0:00:11]} 106. Rc1 {[%emt 0:01:40]} Kb4 {[%emt 0:00:07]} 107. Rb1+ {[%emt 0:00:10]} Ka4 {[%emt 0:00:24]} 108. Kd5 {[%emt 0:00:05]} Ka3 {[%emt 0:00:15]} 109. Bd3 {[%emt 0:00:39]} Rb4 {[%emt 0:00:09]} 110. Rh1 {[%emt 0:00:21]} Rg4 {[%emt 0:01:35]} 111. Be4 {[%emt 0:00:23]} Kb3 {[%emt 0:00:50]} 112. Rc1 {[%emt 0:01:00]} Rh4 {[%emt 0:00:24]} 113. Kd4 {[%emt 0:00:07]} Kb4 {[%emt 0:00:08]} 114. Rb1+ {[%emt 0:00:11]} Ka4 {[%emt 0:00:05]} 115. Rb7 {[%emt 0:00:04]} Rg4 {[%emt 0:00:13]} 116. Kd5 {[%emt 0:00:05] White really could win this.   Weighted Error Value: White=0.11 (very precise) /Black=0.11 (very precise) .  Mistake:       	White=6     	Black=5      Inaccurate:     	White=1     	Black=2      OK:         	White=31    	Black=38     Best:        	White=5     	Black=10     Strong:       	White=5     	Black=4} 1/2-1/2

[Event "Polish Ekstraliga 2024"]
[Site "Walbrzych"]
[Date "2024.10.09"]
[Round "3.21"]
[White "Dzida, Kamil"]
[Black "Piorun, Kacper"]
[Result "1/2-1/2"]
[ECO "B12"]
[WhiteElo "2384"]
[BlackElo "2581"]
[Annotator "TA"]
[PlyCount "108"]
[EventDate "2024.10.05"]
[EventType "team-tourn"]
[EventCountry "POL"]
[SourceTitle "playchess.com"]
[Source "ChessBase"]
[SourceQuality "1"]
[WhiteTeam "Gorzow Wlkp"]
[BlackTeam "Katowice"]
[TimeControl "40/5400+30:1800+30"]

{[%evp 9,108,0,0,4,14,0,5,14,16,-87,-47,-51,-45,-50,-37,-31,-27,-22,-25,-27,0,-11,-7,-14,-27,-35,0,0,0,-14,-12,-30,-31,-28,-37,-27,-23,-39,-30,-31,-25,-31,-24,-34,-20,-27,-22,-30,-11,-11,-10,-22,-6,-6,0,-11,0,0,0,-12,-10,-10,-10,-33,-10,-14,-10,-18,-10,-10,0,-16,0,0,0,-11,0,-11,-11,-11,-4,-11,0,-12,0,0,0,0,0,0,0,0,0,0,0,0,0,0,0,0,0]} 1. e4 {[%emt 0:00:03]} c6 {[%emt 0:00:19]} 2. d4 {[%emt 0:00:14]} d5 {[%emt 0:00:06]} 3. e5 {[%emt 0:00:04]} Bf5 {[%emt 0:00:05]} 4. Nc3 {[%emt 0:00:16][%cal Bb1c3,Bc3e2,Be2g3][%mdl 32]} a6 {[%emt 0:00:30]} 5. Nce2 {[%emt 0:00:11]} e6 {[%emt 0:11:44]} 6. Ng3 {[%emt 0:00:09]} Bg6 {[%emt 0:00:05]} 7. h4 {[%emt 0:00:04][%cal Bh2h4,Bh4h5][%mdl 32]} h6 {[%emt 0:00:11]} 8. h5 {[%emt 0:17:31]} Bh7 {[%emt 0:00:01]} 9. c4 {[%emt 0:06:09]} (9. c3 $11) 9... dxc4 {[%emt 0:12:41]} 10. Bxc4 {[%emt 0:00:19]} c5 {[%emt 0:01:14]} 11. Nf3 {[%emt 0:17:52]} cxd4 {[%emt 0:04:23]} 12. Qxd4 {[%emt 0:09:03]} Nc6 {[%emt 0:03:04]} 13. Qxd8+ {[%emt 0:05:33]} Rxd8 {[%emt 0:00:08]} 14. Bd2 {[%emt 0:00:20]} Bc5 {[%emt 0:10:59]} 15. Rc1 {[%emt 0:05:05][%cal Oc4a6]} Nge7 {[%emt 0:00:33]} 16. Rh4 {[%emt 0:09:08]} Ba7 {[%emt 0:05:24]} 17. Rg4 {[%emt 0:02:48]} Kf8 {[%emt 0:01:36]} 18. Rf4 {[%emt 0:05:04]} Nd5 {[%emt 0:06:35]} 19. Bxd5 {[%emt 0:05:22]} Rxd5 {[%emt 0:01:05]} 20. Ne4 {[%emt 0:00:56]} Ke7 {[%emt 0:12:28][%cal Oa7b8]} (20... Nxe5 $2 {ist das falsche Schlagen.} 21. Rc8+ Ke7 22. Rxh8 $18 (22. Bb4+ Kd7 $18)) (20... Bxe4 {vereinfacht} 21. Rxe4 Kg8 22. Rf4 Rd7) 21. Bc3 {[%emt 0:00:11]} Bxe4 {[%emt 0:03:54]} 22. Rxe4 {[%emt 0:00:04]} Rhd8 {[%emt 0:00:18]} 23. Rg4 {[%emt 0:02:43]} Kf8 {[%emt 0:01:47]} (23... Bb8 {vereinfacht} 24. Re4 Rc8 25. Rd1 Rxd1+ 26. Kxd1 Rd8+) 24. Ke2 {[%emt 0:00:11]} Kg8 {[%emt 0:00:56]} 25. Re4 {[%emt 0:03:55]} Bc5 {[%emt 0:05:32]} 26. Rc2 {[%emt 0:01:55]} R8d7 {[%emt 0:04:10]} 27. b3 {[%emt 0:00:35]} a5 {[%emt 0:03:06]} 28. Rc4 {[%emt 0:03:57]} Bb6 {[%emt 0:02:26]} 29. Rd2 {[%emt 0:01:52]} Kh7 {[%emt 0:00:47]} 30. Rg4 {[%emt 0:00:46]} Re7 {[%emt 0:01:52][%cal Bd7e7,Be7e8,Be8d8][%mdl 32]} 31. Re4 {[%emt 0:00:41]} Bc7 {[%emt 0:01:36]} 32. Rc2 {[%emt 0:01:37]} Rc5 {[%emt 0:00:32]} 33. Rc4 {[%emt 0:00:27]} Rd5 {[%emt 0:00:24]} 34. Re4 {[%emt 0:00:15]} Re8 {[%emt 0:01:01]} 35. Rd2 {[%emt 0:00:12]} Red8 {[%emt 0:00:12]} 36. Re3 {[%emt 0:01:24]} Kg8 {[%emt 0:01:56]} 37. Re4 {[%emt 0:00:10] Die Stellung ist ausgeglichen.} Kf8 {[%emt 0:00:07]} 38. g3 {[%emt 0:01:21]} Bb6 {[%emt 0:00:43]} 39. Rc4 {[%emt 0:00:31]} Ra8 {[%emt 0:01:36]} 40. Ra4 {[%emt 0:00:00]} Bc7 {[%emt 0:00:00]} 41. Rc4 {[%emt 0:04:27]} Bb6 {[%emt 0:05:39]} 42. Ra4 {[%emt 0:00:55]} Rad8 {[%emt 0:04:10]} 43. Re4 {[%emt 0:00:33]} Bc5 {[%emt 0:01:30]} 44. a4 {[%emt 0:07:06]} Kg8 {[%emt 0:04:08]} 45. Rg4 $1 {[%emt 0:01:14]} Kf8 {[%emt 0:00:53]} 46. Re4 {[%emt 0:01:15]} Rb8 {[%emt 0:02:29]} 47. Rc4 {[%emt 0:00:15] [#] Rxd5 wäre nun fies.} b6 {[%emt 0:00:23]} 48. Bb2 {[%emt 0:01:32]} Rbd8 {[%emt 0:00:35]} 49. Bc3 {[%emt 0:00:56]} Kg8 {[%emt 0:00:27]} 50. Rg4 {[%emt 0:00:34]} Kf8 {[%emt 0:02:06]} 51. Rc4 {[%emt 0:00:20]} Ke8 {[%emt 0:00:18]} 52. Rg4 {[%emt 0:00:31]} Bf8 {[%emt 0:02:52]} 53. Rc4 {[%emt 0:02:43]} Bc5 {[%emt 0:00:25]} 54. Rg4 {[%emt 0:00:08]} Kf8 {[%emt 0:01:07] Gewichteter Fehlerwert: Weiß=0.07 (makellos) /Schwarz=0.07 (makellos) .  Fehler:       	Weiß=1     	---        Ungenau:       	---       	Schwarz=2     OK:         	Weiß=21    	Schwarz=12    Bester:       	Weiß=1     	---        Stark:        	Weiß=1     	---} 1/2-1/2

[Event "Polish Ekstraliga 2024"]
[Site "Walbrzych"]
[Date "2024.10.09"]
[Round "3.22"]
[White "Klimkowski, Jan"]
[Black "Koziorowicz, Michal"]
[Result "1/2-1/2"]
[ECO "C02"]
[WhiteElo "2477"]
[BlackElo "2289"]
[Annotator "TA"]
[PlyCount "53"]
[EventDate "2024.10.05"]
[EventType "team-tourn"]
[EventCountry "POL"]
[SourceTitle "playchess.com"]
[Source "ChessBase"]
[SourceQuality "1"]
[WhiteTeam "Katowice"]
[BlackTeam "Gorzow Wlkp"]
[TimeControl "40/5400+30:1800+30"]

{[%evp 17,53,0,0,6,0,0,0,0,0,1,20,15,13,20,30,30,50,33,45,35,40,16,51,39,67,22,44,0,0,0,0,0,0,0,0,0,0,0]} 1. e4 {[%emt 0:00:04]} e6 {[%emt 0:00:35]} 2. d4 {[%emt 0:00:05]} d5 {[%emt 0:00:06]} 3. e5 {[%emt 0:00:11]} c5 {[%emt 0:00:27]} 4. c3 {[%emt 0:00:10]} Nc6 {[%emt 0:00:29]} 5. Nf3 {[%emt 0:00:14]} Bd7 {[%emt 0:00:06]} 6. Be2 {[%emt 0:00:24]} Nge7 {[%emt 0:00:10]} 7. Na3 {[%emt 0:00:17]} cxd4 {[%emt 0:00:44]} 8. cxd4 {[%emt 0:00:09]} Nf5 {[%emt 0:00:05]} 9. Nc2 {[%emt 0:00:14]} Be7 {[%emt 0:00:05]} 10. g3 {[%emt 0:00:09][%cal Bg2g3,Bg3g4][%mdl 32]} Qb6 {[%emt 0:10:27]} 11. h4 Nb4 {[%emt 0:06:01]} 12. Nxb4 {[%emt 0:01:46]} Bxb4+ {[%emt 0:00:13]} 13. Kf1 {[%cal Be1f1,Bf1e2,Be2d3][%mdl 32]} Bb5 {[%emt 0:02:20]} (13... h5 {simplifies} 14. a3 Be7 15. a4 O-O) 14. g4 {[%emt 0:01:21]} (14. h5 {simplifies} h6 15. Kg2 Qa6 16. Bxb5+ Qxb5 17. a3) 14... Bxe2+ {[%emt 0:00:30]} 15. Kxe2 {[%emt 0:00:28]} Qa6+ {[%emt 0:03:33]} 16. Qd3 {[%emt 0:00:10]} Qxd3+ {[%emt 0:01:25]} 17. Kxd3 {[%emt 0:00:05]} Ne7 {[%emt 0:00:04]} 18. h5 {[%emt 0:00:19]} h6 {[%emt 0:00:05]} 19. Nh4 {[%emt 0:13:15][%cal Bf3h4,Bh4g2,Bg2e3][%mdl 32]} Rc8 {[%emt 0:06:45]} 20. f4 {[%emt 0:02:02]} g6 {[%emt 0:09:49]} 21. Ng2 {[%emt 0:11:13]} Ba5 {[%emt 0:07:29]} 22. a3 {[%emt 0:08:16]} gxh5 {[%emt 0:05:00] The position is equal.} 23. Rxh5 {[%emt 0:00:51]} Rg8 {[%emt 0:00:08]} 24. Ne3 {[%emt 0:10:54][%cal Ob2b4]} ({Don't play} 24. Rxh6 Rxg4 25. Ne3 Rxf4 26. Rh8+ Kd7 27. Rxc8 Nxc8 (27... Kxc8 28. Nxd5 Nxd5 29. Bxf4 $11) 28. Nxd5 Rf1 $17) 24... Ng6 {[%emt 0:00:22]} 25. Ng2 {[%emt 0:00:14][%cal Ob2b4]} (25. Rxh6 $2 Nxf4#) 25... Ne7 {[%emt 0:00:07]} 26. Ne3 {[%emt 0:00:10][%cal Ob2b4]} ({Reject} 26. Rxh6 Rxg4 27. Ne3 Rg3 (27... Rxf4 28. Rh8+ Kd7 29. Rxc8 $17) 28. Rh8+ Kd7 $17) 26... Ng6 {[%emt 0:00:05]} 27. Ng2 {[%emt 0:00:37] Weighted Error Value: White=0.14 (very precise) /Black=0.09 (flawless) .  Inaccurate:     	White=2     	Black=2      OK:         	White=6     	Black=5      Best:        	White=1     	Black=3} (27. Rxh6 $2 Nxf4#) 1/2-1/2

[Event "Polish Ekstraliga 2024"]
[Site "Walbrzych"]
[Date "2024.10.09"]
[Round "3.23"]
[White "Rog, Bartlomiej"]
[Black "Seemann, Jakub"]
[Result "0-1"]
[ECO "A06"]
[WhiteElo "2257"]
[BlackElo "2489"]
[Annotator "TA"]
[PlyCount "76"]
[EventDate "2024.10.05"]
[EventType "team-tourn"]
[EventCountry "POL"]
[SourceTitle "playchess.com"]
[Source "ChessBase"]
[SourceQuality "1"]
[WhiteTeam "Gorzow Wlkp"]
[BlackTeam "Katowice"]
[TimeControl "40/5400+30:1800+30"]

{[%evp 11,76,22,20,14,15,26,27,0,0,-16,-7,-19,-11,-20,-18,-10,-11,-9,0,0,0,-6,-10,-6,0,-22,3,1,0,-12,0,0,0,0,0,0,0,-4,0,2,3,0,3,0,0,0,0,-14,-11,-125,-123,-130,-125,-179,-189,-186,-178,-177,-140,-195,-142,-136,-139,-128,-137,-964,-971]} 1. Nf3 {[%emt 0:00:03]} d5 {[%emt 0:00:23]} 2. g3 {[%emt 0:00:15]} Nc6 {[%emt 0:00:41]} 3. d4 {[%emt 0:00:29]} Bf5 {[%emt 0:00:09]} 4. Bg2 {[%emt 0:00:07]} Nb4 {[%emt 0:01:45]} 5. Na3 {[%emt 0:00:20]} e6 {[%emt 0:00:54]} 6. O-O {[%emt 0:01:14]} Be7 {[%emt 0:02:06]} 7. c3 {[%emt 0:06:26]} Nc6 {[%emt 0:01:07]} 8. Nc2 {[%emt 0:15:00]} Nf6 {[%emt 0:03:08]} 9. Bf4 {[%emt 0:00:13] White has an edge.} O-O {[%emt 0:03:28]} 10. h3 {[%emt 0:04:37]} a5 {[%emt 0:01:55]} 11. a4 {[%emt 0:03:19]} h6 {[%emt 0:00:41]} 12. Re1 {[%emt 0:10:39]} Bd6 {[%emt 0:11:32]} 13. Bxd6 {[%emt 0:02:10]} Qxd6 {[%emt 0:05:35]} 14. Nd2 {[%emt 0:07:39]} Ne7 {[%emt 0:16:48]} 15. Na3 {[%emt 0:09:01]} c6 {[%emt 0:04:36]} 16. e3 {[%emt 0:03:29]} Qc7 {[%emt 0:05:51]} 17. Rc1 {[%emt 0:03:45]} Rad8 {[%emt 0:01:11]} 18. Qb3 {[%emt 0:01:58]} Rb8 {[%emt 0:03:04]} 19. c4 {[%emt 0:00:51]} Qd6 {[%emt 0:01:03]} 20. Qc3 {[%emt 0:02:55]} Ra8 {[%emt 0:00:53]} 21. Nc2 {[%emt 0:07:34]} Rfc8 {[%emt 0:00:36]} 22. Qa3 {[%emt 0:01:47]} Qd7 {[%emt 0:01:39]} 23. Na1 {[%emt 0:01:40]} Rd8 {[%emt 0:02:59]} 24. Nab3 {[%emt 0:01:08]} Nc8 {[%emt 0:00:12]} 25. Nc5 {[%emt 0:01:17]} Qc7 {[%emt 0:01:28]} 26. Qb3 {[%emt 0:00:13]} Nd6 {[%emt 0:00:58]} 27. Nd3 {[%emt 0:03:10]} Qe7 {[%emt 0:03:25]} 28. Ne5 {[%emt 0:04:27]} Nfe4 {[%emt 0:02:51]} 29. Nxe4 {[%emt 0:00:19]} Nxe4 {[%emt 0:00:18]} 30. Nd3 {[%emt 0:01:06] Repels Qb4} (30. cxd5 $11 exd5 31. Qd1) 30... Nd2 $1 $17 {[%emt 0:00:56][%csl LRb3,LRc4]} 31. Qc3 {[%emt 0:00:10]} Nxc4 {[%emt 0:01:45] Black is much more active.} 32. e4 {[%emt 0:00:12]} (32. Bf1 $17 {was worth a try.}) 32... Bxe4 $19 {[%emt 0:00:47]} 33. Bxe4 {[%emt 0:01:00]} dxe4 {[%emt 0:00:05]} 34. Rxe4 {[%emt 0:00:10]} Nb6 {[%emt 0:01:05]} 35. Qd2 {[%emt 0:01:44]} (35. b3 $17) 35... Nd5 {[%emt 0:01:01]} (35... Nxa4 $19 36. d5 Nb6 (36... cxd5 $2 {loses.} 37. Rxa4 b6 38. Rg4 $18) 37. dxe6 fxe6) 36. Ne5 $17 {[%emt 0:01:17]} Nf6 {[%emt 0:02:09]} 37. Rf4 {[%emt 0:01:04]} Rd5 {[%emt 0:00:24]} 38. Rc5 $2 {[%emt 0:02:17][%mdl 8192] [#]} (38. Qe3 $17) 38... Qxc5 {[%emt 0:00:18] Weighted Error Value: White=0.34/Black=0.05 (flawless) .  Loses game:     	White=1     	---        Mistake:       	White=3     	Black=1      Inaccurate:     	White=1     	---        OK:         	White=12    	Black=11     Best:        	---       	Black=2} 0-1

[Event "Polish Ekstraliga 2024"]
[Site "Walbrzych"]
[Date "2024.10.09"]
[Round "3.24"]
[White "Socko, Monika"]
[Black "Siekanska, Maria"]
[Result "1-0"]
[ECO "C44"]
[WhiteElo "2419"]
[BlackElo "2149"]
[Annotator "RC"]
[PlyCount "69"]
[EventDate "2024.10.05"]
[EventType "team-tourn"]
[EventCountry "POL"]
[SourceTitle "playchess.com"]
[Source "ChessBase"]
[SourceQuality "1"]
[WhiteTeam "Katowice"]
[BlackTeam "Gorzow Wlkp"]
[TimeControl "40/5400+30:1800+30"]

1. e4 {[%emt 0:00:03]} e5 {[%emt 0:00:04]} 2. Nf3 {[%emt 0:00:18]} Nc6 {[%emt 0:00:04]} 3. d4 {[%emt 0:00:19]} exd4 {[%emt 0:00:07]} 4. Nxd4 {[%emt 0:00:06]} Qf6 {[%emt 0:01:08]} 5. Nf3 {[%emt 0:00:51]} Bb4+ {[%emt 0:00:17]} 6. c3 {[%emt 0:01:01]} Bc5 {[%emt 0:00:05]} 7. Be2 {[%emt 0:02:25]} h6 {[%emt 0:00:07]} 8. Nbd2 {[%emt 0:05:48]} Nge7 {[%emt 0:02:05]} 9. O-O {[%emt 0:03:34]} O-O {[%emt 0:01:01]} 10. Rb1 {[%emt 0:04:29]} a5 {[%emt 0:02:53]} 11. Nb3 {[%emt 0:04:29]} Bb6 {[%emt 0:02:21]} 12. Nbd4 {[%emt 0:00:13]} d5 {[%emt 0:16:01]} 13. Nxc6 {[%emt 0:08:38]} Qxc6 {[%emt 0:00:24]} 14. e5 {[%emt 0:04:38]} Bf5 {[%emt 0:03:00]} 15. Ra1 {[%emt 0:10:09]} Qe6 {[%emt 0:08:59]} 16. Bf4 {[%emt 0:02:12]} c5 {[%emt 0:00:59]} 17. Re1 {[%emt 0:03:36]} Ng6 {[%emt 0:07:50]} 18. Bg3 {[%emt 0:00:40]} a4 {[%emt 0:12:38]} 19. a3 {[%emt 0:06:51]} Bc7 {[%emt 0:03:29]} 20. Bb5 {[%emt 0:09:39]} Qb6 {[%emt 0:08:03]} 21. Bd3 {[%emt 0:00:53]} Bg4 {[%emt 0:02:41]} 22. Bxg6 {[%emt 0:03:54]} fxg6 {[%emt 0:02:10]} 23. Qxd5+ {[%emt 0:00:33]} Kh7 {[%emt 0:00:10]} 24. Re2 {[%emt 0:03:58]} Bxf3 {[%emt 0:02:24]} 25. gxf3 {[%emt 0:00:03]} Rf5 {[%emt 0:00:40]} 26. Qe4 {[%emt 0:00:42]} Re8 {[%emt 0:04:25]} 27. Qxa4 {[%emt 0:02:39]} Re6 {[%emt 0:01:37]} 28. f4 {[%emt 0:00:59]} g5 {[%emt 0:05:05]} 29. fxg5 {[%emt 0:02:35]} hxg5 {[%emt 0:06:23]} 30. Rae1 {[%emt 0:02:18]} Bb8 {[%emt 0:01:01]} 31. Qc4 {[%emt 0:01:42]} Kh8 {[%emt 0:02:35]} 32. Rd1 {[%emt 0:01:33]} Bxe5 {[%emt 0:03:58]} 33. Rd5 {[%emt 0:02:15]} Qc7 {[%emt 0:01:12]} 34. Qd3 {[%emt 0:01:42]} Qf7 {[%emt 0:00:59]} 35. Rdxe5 {[%emt 0:01:01]} 1-0